[Event "DVM U14w 2019"]
[Site "Neumuenster"]
[Date "2019.12.29"]
[Round "5"]
[White "Schulz, Hannah"]
[Black "Roncea, Andrea-Alexandra"]
[Result "0-1"]
[ECO "C50"]
[WhiteElo "1588"]
[BlackElo "1591"]
[Annotator "NA"]
[PlyCount "30"]
[EventDate "2019.12.27"]
[EventType "team-tourn"]
[EventRounds "7"]
[EventCountry "GER"]
[SourceTitle "playchess.com"]
[Source "ChessBase"]
[SourceQuality "1"]
[WhiteTeam "Karlsruher SF"]
[BlackTeam "SC Papenburg"]
[WhiteTeamCountry "GER"]
[BlackTeamCountry "GER"]
[TimeControl "40/5400+30:1800+30"]

1. e4 {[%emt 0:00:00]} e5 {[%emt 0:00:00]} 2. Nf3 {[%emt 0:00:00]} Nc6 {[%emt 0:00:00]} 3. Bc4 {[%emt 0:00:00]} Bc5 {[%emt 0:00:00]} 4. O-O {[%emt 0:00:00]} d6 {[%emt 0:00:00]} 5. c3 {[%emt 0:00:18]} Nf6 {[%emt 0:00:01]} 6. d3 {[%emt 0:00:12]} a6 {[%emt 0:00:12]} 7. a4 {[%emt 0:00:04]} Ba7 {[%emt 0:01:24]} 8. Re1 {[%emt 0:01:24]} h6 {[%emt 0:02:03]} 9. Nbd2 {[%emt 0:00:25]} O-O {[%emt 0:01:40]} 10. Nf1 {[%emt 0:00:39]} Ne7 {[%emt 0:07:59]} 11. Ng3 {[%emt 0:00:25]} Ng6 {[%emt 0:00:34]} 12. h3 {[%emt 0:06:00]} Re8 {[%emt 0:02:42]} 13. Qb3 {[%emt 0:03:54]} Rf8 {[%emt 0:05:21]} 14. Nf5 {[%emt 0:11:09]} Bxf5 {[%emt 0:02:29]} 15. exf5 {[%emt 0:00:07]} Ne7 {[%emt 0:00:37] normal} 0-1

[Event "DVM U14w 2019"]
[Site "Neumuenster"]
[Date "2019.12.29"]
[Round "5"]
[White "Voigt, Anastasia"]
[Black "Siegel, Irene"]
[Result "1-0"]
[ECO "C54"]
[WhiteElo "1511"]
[BlackElo "1004"]
[Annotator "NA"]
[PlyCount "61"]
[EventDate "2019.12.27"]
[EventType "team-tourn"]
[EventRounds "7"]
[EventCountry "GER"]
[SourceTitle "playchess.com"]
[Source "ChessBase"]
[SourceQuality "1"]
[WhiteTeam "USV Halle"]
[BlackTeam "SG Porz"]
[WhiteTeamCountry "GER"]
[TimeControl "40/5400+30:1800+30"]

1. e4 {[%emt 0:00:00]} e5 {[%emt 0:00:00]} 2. Nf3 {[%emt 0:00:00]} Nc6 {[%emt 0:00:00]} 3. Bc4 {[%emt 0:00:00]} Bc5 {[%emt 0:00:02]} 4. c3 {[%emt 0:00:00]} Nf6 {[%emt 0:00:20]} 5. d3 {[%emt 0:00:14]} d6 {[%emt 0:00:15]} 6. h3 {[%emt 0:01:12]} a6 {[%emt 0:00:09]} 7. Bb3 {[%emt 0:00:06]} h6 {[%emt 0:01:25]} 8. Nbd2 {[%emt 0:00:12]} O-O {[%emt 0:01:39]} 9. Nf1 {[%emt 0:01:15]} Re8 {[%emt 0:08:54]} 10. Ne3 {[%emt 0:00:46]} Ne7 {[%emt 0:06:47]} 11. O-O {[%emt 0:01:25]} Ng6 {[%emt 0:00:42]} 12. Re1 {[%emt 0:03:35]} c6 {[%emt 0:04:49]} 13. Nf1 {[%emt 0:01:31]} Nh7 {[%emt 0:08:12]} 14. Be3 {[%emt 0:03:33]} Bxe3 {[%emt 0:01:28]} 15. Nxe3 {[%emt 0:00:38]} Nh4 {[%emt 0:02:32]} 16. Nc4 {[%emt 0:05:55]} Nxf3+ {[%emt 0:02:22]} 17. Qxf3 {[%emt 0:00:51]} Be6 {[%emt 0:00:38]} 18. d4 {[%emt 0:05:54]} d5 {[%emt 0:02:49]} 19. Nxe5 {[%emt 0:03:42]} Ng5 {[%emt 0:03:26]} 20. Qh5 {[%emt 0:09:14]} Nxe4 {[%emt 0:07:53]} 21. Bc2 {[%emt 0:05:33]} Ng5 {[%emt 0:01:07]} 22. f4 {[%emt 0:06:34]} Nh7 {[%emt 0:00:38]} 23. Bxh7+ {[%emt 0:03:54]} Kxh7 {[%emt 0:00:13]} 24. f5 {[%emt 0:01:23]} Bd7 {[%emt 0:01:29]} 25. Qxf7 {[%emt 0:00:48]} Rf8 {[%emt 0:01:12]} 26. Qxd7 {[%emt 0:00:32]} Qg5 {[%emt 0:01:18]} 27. Nf3 {[%emt 0:02:26]} Qf4 {[%emt 0:01:28]} 28. Re7 {[%emt 0:03:58]} Rg8 {[%emt 0:00:45]} 29. Qe6 {[%emt 0:02:37]} Kh8 {[%emt 0:01:13]} 30. Ne5 {[%emt 0:03:46]} Qg5 {[%emt 0:02:02]} 31. Nf7+ {[%emt 0:00:08] normal} 1-0

[Event "DVM U14w 2019"]
[Site "Neumuenster"]
[Date "2019.12.29"]
[Round "5"]
[White "Sinner, Joselyne"]
[Black "Stowicek, Yara Mathilda"]
[Result "1/2-1/2"]
[ECO "C49"]
[WhiteElo "1407"]
[BlackElo "1682"]
[Annotator "NA"]
[PlyCount "46"]
[EventDate "2019.12.27"]
[EventType "team-tourn"]
[EventRounds "7"]
[EventCountry "GER"]
[SourceTitle "playchess.com"]
[Source "ChessBase"]
[SourceQuality "1"]
[WhiteTeam "SG Porz"]
[BlackTeam "USV Halle"]
[WhiteTeamCountry "GER"]
[BlackTeamCountry "GER"]
[TimeControl "40/5400+30:1800+30"]

1. e4 {[%emt 0:00:00]} e5 {[%emt 0:00:00]} 2. Nf3 {[%emt 0:00:00]} Nc6 {[%emt 0:00:00]} 3. Nc3 {[%emt 0:00:00]} Nf6 {[%emt 0:00:02]} 4. Bb5 {[%emt 0:00:00]} Bb4 {[%emt 0:00:36]} 5. O-O {[%emt 0:00:00]} O-O {[%emt 0:01:12]} 6. d3 {[%emt 0:00:02]} d6 {[%emt 0:00:35]} 7. Bg5 {[%emt 0:00:09]} Bxc3 {[%emt 0:00:47]} 8. bxc3 {[%emt 0:00:07]} Qe7 {[%emt 0:01:07]} 9. Re1 {[%emt 0:03:03]} Nd8 {[%emt 0:18:21]} 10. Bc1 {[%emt 0:11:45]} h6 {[%emt 0:13:30]} 11. Qe2 {[%emt 0:17:42]} Nh7 {[%emt 0:06:27]} 12. d4 {[%emt 0:10:16]} Bg4 {[%emt 0:06:51]} 13. h3 {[%emt 0:05:05]} Bxf3 {[%emt 0:06:23]} 14. Qxf3 {[%emt 0:01:11]} Ne6 {[%emt 0:00:40]} 15. Qd3 {[%emt 0:07:05]} Qf6 {[%emt 0:02:01]} 16. Be3 {[%emt 0:02:31]} Rad8 {[%emt 0:03:56]} 17. Bc4 {[%emt 0:04:21]} Nf4 {[%emt 0:02:36]} 18. Bxf4 {[%emt 0:03:05]} Qxf4 {[%emt 0:00:18]} 19. Qe3 {[%emt 0:02:50]} Qf6 {[%emt 0:02:46]} 20. Rad1 {[%emt 0:01:50]} a6 {[%emt 0:02:03]} 21. Bb3 {[%emt 0:03:24]} Ng5 {[%emt 0:01:49]} 22. f3 {[%emt 0:01:46]} Ne6 {[%emt 0:05:29]} 23. Bxe6 {[%emt 0:02:00]} Qxe6 {[%emt 0:01:33] normal} 1/2-1/2

[Event "DVM U14w 2019"]
[Site "Neumuenster"]
[Date "2019.12.29"]
[Round "5"]
[White "Rosin, Ida"]
[Black "Halas, Neele Zoe"]
[Result "0-1"]
[ECO "C45"]
[WhiteElo "1389"]
[BlackElo "1076"]
[Annotator "NA"]
[PlyCount "118"]
[EventDate "2019.12.27"]
[EventType "team-tourn"]
[EventRounds "7"]
[EventCountry "GER"]
[SourceTitle "playchess.com"]
[Source "ChessBase"]
[SourceQuality "1"]
[WhiteTeam "Lübecker SV"]
[BlackTeam "SG Leipzig"]
[WhiteTeamCountry "GER"]
[TimeControl "40/5400+30:1800+30"]

1. e4 {[%emt 0:00:00]} e5 {[%emt 0:00:00]} 2. Nf3 {[%emt 0:00:00]} Nc6 {[%emt 0:00:00]} 3. d4 {[%emt 0:00:00]} exd4 {[%emt 0:00:00]} 4. Nxd4 {[%emt 0:00:08]} Bc5 {[%emt 0:00:00]} 5. Be3 {[%emt 0:00:15]} Qf6 {[%emt 0:00:00]} 6. Nxc6 {[%emt 0:00:23]} Bxe3 {[%emt 0:00:00]} 7. fxe3 {[%emt 0:02:01]} Qxc6 {[%emt 0:00:11]} 8. Nc3 {[%emt 0:00:15]} b6 {[%emt 0:11:39]} 9. Qd3 {[%emt 0:03:39]} Bb7 {[%emt 0:02:59]} 10. O-O-O {[%emt 0:00:38]} O-O-O {[%emt 0:05:00]} 11. Be2 {[%emt 0:03:20]} Nf6 {[%emt 0:05:57]} 12. Bf3 {[%emt 0:02:46]} Qe6 {[%emt 0:14:04]} 13. Qd4 {[%emt 0:03:05]} Rhe8 {[%emt 0:05:10]} 14. Rhe1 {[%emt 0:01:36]} Qe5 {[%emt 0:08:56]} 15. Qxe5 {[%emt 0:01:30]} Rxe5 {[%emt 0:00:14]} 16. Rd4 {[%emt 0:00:13]} Rde8 {[%emt 0:01:32]} 17. Red1 {[%emt 0:01:38]} d6 {[%emt 0:01:00]} 18. R1d3 {[%emt 0:01:21]} Nxe4 {[%emt 0:00:57]} 19. Nxe4 {[%emt 0:00:54]} Bxe4 {[%emt 0:00:09]} 20. Bxe4 {[%emt 0:00:13]} Rxe4 {[%emt 0:00:19]} 21. Rxe4 {[%emt 0:00:58]} Rxe4 {[%emt 0:00:07]} 22. c3 {[%emt 0:01:00]} Kd7 {[%emt 0:00:17]} 23. Kc2 {[%emt 0:00:19]} c6 {[%emt 0:00:38]} 24. Kd2 {[%emt 0:00:53]} Ke6 {[%emt 0:00:55]} 25. g3 {[%emt 0:01:02]} d5 {[%emt 0:00:22]} 26. b3 {[%emt 0:00:22]} c5 {[%emt 0:03:28]} 27. Ke2 {[%emt 0:00:42]} Ke5 {[%emt 0:01:39]} 28. Kf3 {[%emt 0:00:51]} f5 {[%emt 0:05:21]} 29. h3 {[%emt 0:00:57]} g5 {[%emt 0:05:24]} 30. Kf2 {[%emt 0:00:16]} f4 {[%emt 0:01:50]} 31. g4 {[%emt 0:00:29]} fxe3+ {[%emt 0:00:21]} 32. Rxe3 {[%emt 0:00:11]} Rxe3 {[%emt 0:00:04]} 33. Kxe3 {[%emt 0:00:09]} d4+ {[%emt 0:02:09]} 34. cxd4+ {[%emt 0:00:19]} cxd4+ {[%emt 0:00:07]} 35. Kd3 {[%emt 0:00:07]} Kd5 {[%emt 0:03:03]} 36. a3 {[%emt 0:00:19]} a6 {[%emt 0:02:18]} 37. b4 {[%emt 0:00:26]} b5 {[%emt 0:00:15]} 38. Kd2 {[%emt 0:00:15]} Ke5 {[%emt 0:00:28]} 39. Kd3 {[%emt 0:00:08]} Kf4 {[%emt 0:03:27]} 40. Kxd4 {[%emt 0:00:09]} Kg3 {[%emt 0:00:05]} 41. Kc5 {[%emt 0:30:13]} Kxh3 {[%emt 0:30:07]} 42. Kb6 {[%emt 0:00:13]} Kxg4 {[%emt 0:00:05]} 43. Kxa6 {[%emt 0:00:13]} h5 {[%emt 0:00:03]} 44. Kxb5 {[%emt 0:00:17]} h4 {[%emt 0:00:06]} 45. a4 {[%emt 0:00:07]} h3 {[%emt 0:00:03]} 46. a5 {[%emt 0:00:15]} h2 {[%emt 0:00:05]} 47. a6 {[%emt 0:00:05]} h1=Q {[%emt 0:00:06]} 48. a7 {[%emt 0:00:07]} Qb7+ {[%emt 0:00:15]} 49. Kc4 {[%emt 0:00:10]} Qxa7 {[%emt 0:00:11]} 50. b5 {[%emt 0:00:09]} Qb6 {[%emt 0:00:13]} 51. Kb4 {[%emt 0:00:06]} Kh3 {[%emt 0:00:13]} 52. Kc4 {[%emt 0:01:20]} g4 {[%emt 0:00:09]} 53. Kb4 {[%emt 0:00:09]} g3 {[%emt 0:00:05]} 54. Kb3 {[%emt 0:00:07]} Qxb5+ {[%emt 0:00:05]} 55. Kc3 {[%emt 0:00:12]} g2 {[%emt 0:00:19]} 56. Kd2 {[%emt 0:00:12]} g1=R {[%emt 0:00:44]} 57. Kc2 {[%emt 0:00:11]} Rg3 {[%emt 0:00:30]} 58. Kc1 {[%emt 0:00:12]} Rg2 {[%emt 0:00:09]} 59. Kd1 {[%emt 0:00:07]} Qf1# {[%emt 0:00:09] normal} 0-1

[Event "DVM U14w 2019"]
[Site "Neumuenster"]
[Date "2019.12.29"]
[Round "5"]
[White "Nguyen, Jenny Ha-Linh"]
[Black "Alscher, Anouk"]
[Result "1/2-1/2"]
[ECO "C54"]
[WhiteElo "1387"]
[BlackElo "1110"]
[Annotator "NA"]
[PlyCount "48"]
[EventDate "2019.12.27"]
[EventType "team-tourn"]
[EventRounds "7"]
[EventCountry "GER"]
[SourceTitle "playchess.com"]
[Source "ChessBase"]
[SourceQuality "1"]
[WhiteTeam "SG Leipzig"]
[BlackTeam "Lübecker SV"]
[WhiteTeamCountry "GER"]
[TimeControl "40/5400+30:1800+30"]

1. e4 {[%emt 0:00:00]} e5 {[%emt 0:00:00]} 2. Nf3 {[%emt 0:00:00]} Nc6 {[%emt 0:00:00]} 3. Bc4 {[%emt 0:00:00]} Bc5 {[%emt 0:00:01]} 4. c3 {[%emt 0:00:14]} Nf6 {[%emt 0:00:20]} 5. d3 {[%emt 0:00:15]} d6 {[%emt 0:00:46]} 6. O-O {[%emt 0:00:17]} O-O {[%emt 0:00:34]} 7. Bb3 {[%emt 0:01:29]} Bg4 {[%emt 0:01:02]} 8. Nbd2 {[%emt 0:00:22]} Qd7 {[%emt 0:01:14]} 9. Re1 {[%emt 0:01:16]} Rfe8 {[%emt 0:02:58]} 10. Nf1 {[%emt 0:00:29]} h6 {[%emt 0:02:37]} 11. Ng3 {[%emt 0:03:19]} Nh5 {[%emt 0:04:07]} 12. Nxh5 {[%emt 0:03:56]} Bxh5 {[%emt 0:00:12]} 13. Be3 {[%emt 0:02:28]} Bb6 {[%emt 0:01:07]} 14. Bxb6 {[%emt 0:05:04]} cxb6 {[%emt 0:01:20]} 15. d4 {[%emt 0:00:57]} Bxf3 {[%emt 0:00:28]} 16. gxf3 {[%emt 0:02:16]} exd4 {[%emt 0:00:23]} 17. cxd4 {[%emt 0:00:38]} Re7 {[%emt 0:02:26]} 18. Kh1 {[%emt 0:06:58]} Rae8 {[%emt 0:03:49]} 19. a3 {[%emt 0:07:55]} Kf8 {[%emt 0:05:24]} 20. d5 {[%emt 0:10:42]} Na5 {[%emt 0:01:18]} 21. Ba2 {[%emt 0:06:45]} b5 {[%emt 0:04:05]} 22. Qd3 {[%emt 0:02:46]} b6 {[%emt 0:04:47]} 23. b4 {[%emt 0:07:41]} Nb7 {[%emt 0:00:24]} 24. Re3 {[%emt 0:03:48]} Re5 {[%emt 0:05:27] normal} 1/2-1/2

[Event "DVM U14w 2019"]
[Site "Neumuenster"]
[Date "2019.12.29"]
[Round "5"]
[White "Dixon Quiroz, Laura Michaela"]
[Black "Moradi, Yassaman"]
[Result "1-0"]
[ECO "B92"]
[WhiteElo "1310"]
[BlackElo "1293"]
[Annotator "NA"]
[PlyCount "103"]
[EventDate "2019.12.27"]
[EventType "team-tourn"]
[EventRounds "7"]
[EventCountry "GER"]
[SourceTitle "playchess.com"]
[Source "ChessBase"]
[SourceQuality "1"]
[WhiteTeam "VSG 1880 Offenbach"]
[BlackTeam "SV Traktor Priestewitz"]
[WhiteTeamCountry "GER"]
[TimeControl "40/5400+30:1800+30"]

1. e4 {[%emt 0:00:00]} c5 {[%emt 0:00:00]} 2. Nf3 {[%emt 0:00:00]} d6 {[%emt 0:00:00]} 3. d4 {[%emt 0:00:05]} cxd4 {[%emt 0:00:00]} 4. Nxd4 {[%emt 0:00:06]} Nf6 {[%emt 0:00:02]} 5. Nc3 {[%emt 0:00:20]} a6 {[%emt 0:00:05]} 6. Be2 {[%emt 0:00:20]} e5 {[%emt 0:00:15]} 7. Nb3 {[%emt 0:00:21]} Be7 {[%emt 0:00:15]} 8. O-O {[%emt 0:00:24]} O-O {[%emt 0:00:11]} 9. Re1 {[%emt 0:02:06]} Nc6 {[%emt 0:02:44]} 10. a4 {[%emt 0:02:36]} Be6 {[%emt 0:01:42]} 11. Bf3 {[%emt 0:01:01]} Qd7 {[%emt 0:01:59]} 12. Nd5 {[%emt 0:01:52]} Rad8 {[%emt 0:03:44]} 13. Be3 {[%emt 0:11:22]} Bxd5 {[%emt 0:07:32]} 14. exd5 {[%emt 0:01:15]} e4 {[%emt 0:00:42]} 15. dxc6 {[%emt 0:01:05]} Qxc6 {[%emt 0:01:49]} 16. Be2 {[%emt 0:01:06]} d5 {[%emt 0:02:03]} 17. Nd4 {[%emt 0:02:40]} Qd7 {[%emt 0:00:35]} 18. c3 {[%emt 0:03:50]} Qd6 {[%emt 0:05:41]} 19. b4 {[%emt 0:07:26]} Rc8 {[%emt 0:08:24]} 20. Nf5 {[%emt 0:01:10]} Qe5 {[%emt 0:02:13]} 21. Nxe7+ {[%emt 0:00:20]} Qxe7 {[%emt 0:00:06]} 22. Bc5 {[%emt 0:00:28]} Qc7 {[%emt 0:01:23]} 23. Bxf8 {[%emt 0:00:13]} Rxf8 {[%emt 0:00:08]} 24. Qb3 {[%emt 0:02:19]} Rd8 {[%emt 0:00:48]} 25. Red1 {[%emt 0:01:19]} Qe5 {[%emt 0:02:57]} 26. Rd4 {[%emt 0:03:11]} Nh5 {[%emt 0:05:16]} 27. Bxh5 {[%emt 0:03:55]} Qxh5 {[%emt 0:00:10]} 28. Rad1 {[%emt 0:03:18]} Rf8 {[%emt 0:02:08]} 29. Qxd5 {[%emt 0:00:33]} Qg6 {[%emt 0:00:10]} 30. Qxe4 {[%emt 0:00:33]} Qxe4 {[%emt 0:00:16]} 31. Rxe4 {[%emt 0:00:11]} g6 {[%emt 0:00:07]} 32. Re7 Rc8 {[%emt 0:00:07]} 33. Rd3 {[%emt 0:00:44]} b6 {[%emt 0:00:06]} 34. f4 {[%emt 0:01:01]} Kg7 {[%emt 0:00:13]} 35. Kf2 {[%emt 0:01:49]} b5 {[%emt 0:00:12]} 36. axb5 {[%emt 0:00:23]} axb5 {[%emt 0:00:18]} 37. Rb7 {[%emt 0:00:09]} Ra8 {[%emt 0:00:06]} 38. Kf3 {[%emt 0:00:46]} h5 {[%emt 0:00:12]} 39. Rxb5 {[%emt 0:00:20]} Re8 {[%emt 0:00:37]} 40. Re5 {[%emt 0:00:39]} Rxe5 {[%emt 0:00:07]} 41. fxe5 {[%emt 0:30:09]} g5 {[%emt 0:30:05]} 42. Rd7 {[%emt 0:00:21]} Kg6 {[%emt 0:00:09]} 43. b5 {[%emt 0:00:23]} g4+ {[%emt 0:00:12]} 44. Kf4 {[%emt 0:00:11]} Kg7 {[%emt 0:00:14]} 45. e6 {[%emt 0:00:12]} g3 {[%emt 0:00:25]} 46. hxg3 {[%emt 0:00:12]} h4 {[%emt 0:00:07]} 47. Rxf7+ {[%emt 0:00:22]} Kg6 {[%emt 0:00:12]} 48. gxh4 {[%emt 0:00:23]} Kh5 {[%emt 0:00:07]} 49. g3 {[%emt 0:00:16]} Kg6 {[%emt 0:00:05]} 50. b6 {[%emt 0:00:09]} Kh6 {[%emt 0:00:10]} 51. Kf5 {[%emt 0:00:20]} Kh5 {[%emt 0:00:08]} 52. Rh7# {[%emt 0:00:08] normal} 1-0

[Event "DVM U14w 2019"]
[Site "Neumuenster"]
[Date "2019.12.29"]
[Round "5"]
[White "Gossing, Marie-Sophie"]
[Black "Oswald, Hannah"]
[Result "1/2-1/2"]
[ECO "C50"]
[WhiteElo "1263"]
[BlackElo "1647"]
[Annotator "NA"]
[PlyCount "63"]
[EventDate "2019.12.27"]
[EventType "team-tourn"]
[EventRounds "7"]
[EventCountry "GER"]
[SourceTitle "playchess.com"]
[Source "ChessBase"]
[SourceQuality "1"]
[WhiteTeam "Lübecker SV"]
[BlackTeam "SG Leipzig"]
[WhiteTeamCountry "GER"]
[BlackTeamCountry "GER"]
[TimeControl "40/5400+30:1800+30"]

1. e4 {[%emt 0:00:00]} e5 {[%emt 0:00:00]} 2. Nf3 {[%emt 0:00:11]} Nc6 {[%emt 0:00:00]} 3. Bc4 {[%emt 0:00:24]} Bc5 {[%emt 0:00:03]} 4. Nc3 {[%emt 0:09:42]} Nf6 {[%emt 0:01:08]} 5. d3 {[%emt 0:02:20]} d6 {[%emt 0:02:42]} 6. Be3 {[%emt 0:03:35]} Bb6 {[%emt 0:00:16]} 7. d4 {[%emt 0:03:17]} Bg4 {[%emt 0:13:50]} 8. d5 {[%emt 0:05:57]} Ne7 {[%emt 0:04:07]} 9. Qd2 {[%emt 0:06:07]} Ba5 {[%emt 0:03:45]} 10. Bd3 {[%emt 0:04:35]} Ng6 {[%emt 0:13:03]} 11. h3 {[%emt 0:06:28]} Bd7 {[%emt 0:01:38]} 12. O-O {[%emt 0:06:10]} O-O {[%emt 0:03:42]} 13. a3 {[%emt 0:00:46]} Nh5 {[%emt 0:09:57]} 14. b4 {[%emt 0:00:59]} Bb6 {[%emt 0:00:21]} 15. Ne2 {[%emt 0:01:26]} Qc8 {[%emt 0:06:06]} 16. Kh2 {[%emt 0:03:11]} f5 {[%emt 0:08:54]} 17. c4 {[%emt 0:02:54]} c5 {[%emt 0:07:18]} 18. Qc1 {[%emt 0:02:22]} fxe4 {[%emt 0:02:02]} 19. Bxe4 {[%emt 0:00:18]} Ngf4 {[%emt 0:03:42]} 20. Qc2 {[%emt 0:08:39]} h6 {[%emt 0:04:16]} 21. Nh4 {[%emt 0:10:01]} Bd8 {[%emt 0:02:51]} 22. Nxf4 {[%emt 0:03:23]} Nxf4 {[%emt 0:01:54]} 23. Bxf4 {[%emt 0:01:53]} Bxh4 {[%emt 0:01:41]} 24. Be3 {[%emt 0:01:09]} b6 {[%emt 0:01:05]} 25. b5 {[%emt 0:01:36]} Qd8 {[%emt 0:01:05]} 26. f4 {[%emt 0:01:53]} Bf6 {[%emt 0:01:30]} 27. Rad1 {[%emt 0:01:49]} Qe7 {[%emt 0:01:10]} 28. Bd3 {[%emt 0:01:01]} exf4 {[%emt 0:00:42]} 29. Bxf4 {[%emt 0:00:47]} Be5 {[%emt 0:00:26]} 30. Bxe5 {[%emt 0:00:09]} Qxe5+ {[%emt 0:00:05]} 31. Kh1 {[%emt 0:00:30]} Qg5 {[%emt 0:01:07]} 32. Be4 {[%emt 0:01:24] normal} 1/2-1/2

[Event "DVM U14w 2019"]
[Site "Neumuenster"]
[Date "2019.12.29"]
[Round "5"]
[White "Moradi, Yakta"]
[Black "Boutayeb, Malak"]
[Result "1-0"]
[ECO "C44"]
[WhiteElo "1257"]
[BlackElo "800"]
[Annotator "NA"]
[PlyCount "63"]
[EventDate "2019.12.27"]
[EventType "team-tourn"]
[EventRounds "7"]
[EventCountry "GER"]
[SourceTitle "playchess.com"]
[Source "ChessBase"]
[SourceQuality "1"]
[WhiteTeam "SV Traktor Priestewitz"]
[BlackTeam "VSG 1880 Offenbach"]
[TimeControl "40/5400+30:1800+30"]

1. e4 {[%emt 0:00:00]} e5 {[%emt 0:00:00]} 2. Nf3 {[%emt 0:00:00]} Nc6 {[%emt 0:00:00]} 3. d4 {[%emt 0:00:00]} d6 {[%emt 0:03:11]} 4. dxe5 {[%emt 0:00:11]} dxe5 {[%emt 0:06:04]} 5. Qxd8+ {[%emt 0:00:54]} Kxd8 {[%emt 0:01:25]} 6. Bc4 {[%emt 0:00:11]} Nf6 {[%emt 0:01:36]} 7. Ng5 {[%emt 0:00:38]} Be6 {[%emt 0:04:39]} 8. Nxe6+ {[%emt 0:00:15]} fxe6 {[%emt 0:00:14]} 9. Bg5 {[%emt 0:00:50]} Nb4 {[%emt 0:00:32]} 10. Bb3 {[%emt 0:00:27]} h6 {[%emt 0:00:45]} 11. Bxf6+ {[%emt 0:00:42]} gxf6 {[%emt 0:00:45]} 12. Nc3 {[%emt 0:00:06]} c5 {[%emt 0:05:17]} 13. a3 {[%emt 0:00:44]} Nc6 {[%emt 0:01:53]} 14. Bxe6 {[%emt 0:00:56]} Nd4 {[%emt 0:02:25]} 15. O-O-O {[%emt 0:00:11]} Bd6 {[%emt 0:08:07]} 16. Bd5 {[%emt 0:00:21]} Nc6 {[%emt 0:03:07]} 17. Bxc6 {[%emt 0:00:33]} bxc6 {[%emt 0:00:03]} 18. Rxd6+ {[%emt 0:00:08]} Kc7 {[%emt 0:04:34]} 19. Rxf6 {[%emt 0:00:07]} Rab8 {[%emt 0:02:05]} 20. Rf7+ {[%emt 0:01:24]} Kb6 {[%emt 0:01:11]} 21. Na4+ {[%emt 0:01:06]} Ka6 {[%emt 0:00:22]} 22. Nxc5+ {[%emt 0:00:06]} Ka5 {[%emt 0:00:51]} 23. b4+ {[%emt 0:00:22]} Kb5 {[%emt 0:02:07]} 24. Rxa7 {[%emt 0:00:25]} Kb6 {[%emt 0:01:50]} 25. Ra6+ {[%emt 0:00:04]} Kb5 {[%emt 0:00:17]} 26. Ra5+ {[%emt 0:00:11]} Kb6 {[%emt 0:00:26]} 27. Nd7+ {[%emt 0:00:01]} Kb7 {[%emt 0:00:33]} 28. Nxb8 {[%emt 0:00:06]} Rxb8 29. Rd1 {[%emt 0:00:25]} Kb6 {[%emt 0:10:18]} 30. c4 {[%emt 0:00:17]} Kb7 {[%emt 0:00:41]} 31. Rd7+ {[%emt 0:00:32]} Kb6 {[%emt 0:00:23]} 32. c5# {normal} 1-0

[Event "DVM U14w 2019"]
[Site "Neumuenster"]
[Date "2019.12.29"]
[Round "5"]
[White "Mai, Mariella"]
[Black "Buchholz, Maja"]
[Result "1-0"]
[ECO "A03"]
[WhiteElo "1232"]
[BlackElo "1666"]
[Annotator "NA"]
[PlyCount "51"]
[EventDate "2019.12.27"]
[EventType "team-tourn"]
[EventRounds "7"]
[EventCountry "GER"]
[SourceTitle "playchess.com"]
[Source "ChessBase"]
[SourceQuality "1"]
[WhiteTeam "SV Traktor Priestewitz"]
[BlackTeam "VSG 1880 Offenbach"]
[BlackTeamCountry "GER"]
[TimeControl "40/5400+30:1800+30"]

1. f4 {[%emt 0:00:00]} d5 {[%emt 0:00:00]} 2. Nf3 {[%emt 0:00:00]} g6 {[%emt 0:00:00]} 3. d4 {[%emt 0:00:01]} Bg7 {[%emt 0:00:00]} 4. Nc3 {[%emt 0:00:24]} Nf6 {[%emt 0:00:00]} 5. e3 {[%emt 0:00:34]} b6 {[%emt 0:00:25]} 6. Ne5 {[%emt 0:00:43]} Bb7 {[%emt 0:00:41]} 7. Bd3 {[%emt 0:02:25]} O-O {[%emt 0:00:35]} 8. O-O {[%emt 0:00:16]} e6 {[%emt 0:01:29]} 9. b3 {[%emt 0:01:01]} Nbd7 {[%emt 0:00:50]} 10. Ba3 {[%emt 0:00:41]} Re8 {[%emt 0:00:28]} 11. Bb5 {[%emt 0:00:30]} Bf8 {[%emt 0:07:51]} 12. Bb2 {[%emt 0:00:56]} a6 {[%emt 0:00:57]} 13. Bc6 {[%emt 0:01:21]} Bxc6 {[%emt 0:00:20]} 14. Nxc6 {[%emt 0:00:12]} Qc8 {[%emt 0:00:04]} 15. Qf3 {[%emt 0:00:32]} Qb7 {[%emt 0:00:33]} 16. Ne5 {[%emt 0:00:22]} c5 {[%emt 0:00:43]} 17. Rae1 {[%emt 0:03:46]} Rec8 {[%emt 0:01:38]} 18. Kh1 {[%emt 0:03:16]} b5 {[%emt 0:01:33]} 19. Na4 {[%emt 0:02:21]} bxa4 {[%emt 0:00:17]} 20. dxc5 {[%emt 0:01:24]} Nxc5 {[%emt 0:00:32]} 21. Nxg6 {[%emt 0:01:33]} hxg6 {[%emt 0:00:32]} 22. Bxf6 {[%emt 0:00:27]} Ne4 {[%emt 0:00:12]} 23. Be5 {[%emt 0:00:33]} Rxc2 {[%emt 0:00:46]} 24. Qh3 {[%emt 0:01:02]} Nf2+ {[%emt 0:00:30]} 25. Rxf2 {[%emt 0:00:11]} Rxf2 {[%emt 0:00:05]} 26. Qh8# {normal} 1-0

[Event "DVM U14w 2019"]
[Site "Neumuenster"]
[Date "2019.12.29"]
[Round "5"]
[White "Kuran, Olivia"]
[Black "Evering, Enna"]
[Result "0-1"]
[ECO "C47"]
[WhiteElo "1003"]
[BlackElo "1556"]
[Annotator "NA"]
[PlyCount "47"]
[EventDate "2019.12.27"]
[EventType "team-tourn"]
[EventRounds "7"]
[EventCountry "GER"]
[SourceTitle "playchess.com"]
[Source "ChessBase"]
[SourceQuality "1"]
[WhiteTeam "Karlsruher SF"]
[BlackTeam "SC Papenburg"]
[BlackTeamCountry "GER"]
[TimeControl "40/5400+30:1800+30"]

1. e4 {[%emt 0:00:00]} e5 {[%emt 0:00:00]} 2. Nf3 {[%emt 0:00:00]} Nc6 {[%emt 0:00:00]} 3. Bc4 {[%emt 0:00:00]} Nf6 {[%emt 0:00:15]} 4. Nc3 {[%emt 0:00:34]} Nxe4 {[%emt 0:01:13]} 5. Nxe4 {[%emt 0:01:59]} d5 {[%emt 0:00:20]} 6. Bd3 {[%emt 0:01:28]} dxe4 {[%emt 0:00:13]} 7. Bxe4 {[%emt 0:00:12]} Bd6 {[%emt 0:04:48]} 8. d3 {[%emt 0:01:42]} Bd7 {[%emt 0:04:59]} 9. Bd5 {[%emt 0:04:24]} h6 {[%emt 0:04:05]} 10. Be3 {[%emt 0:04:41]} Qe7 {[%emt 0:06:54]} 11. O-O {[%emt 0:04:31]} O-O {[%emt 0:05:33]} 12. d4 {[%emt 0:02:22]} exd4 {[%emt 0:14:11]} 13. Nxd4 {[%emt 0:03:07]} Bxh2+ {[%emt 0:09:22]} 14. Kh1 {[%emt 0:07:26]} Be5 {[%emt 0:07:44]} 15. Nf3 {[%emt 0:02:20]} Bg4 {[%emt 0:07:26]} 16. g3 {[%emt 0:02:27]} Qf6 {[%emt 0:06:15]} 17. c3 {[%emt 0:02:35]} Rad8 {[%emt 0:02:34]} 18. Kg2 {[%emt 0:01:50]} Qf5 {[%emt 0:05:59]} 19. Rb1 {[%emt 0:02:59]} Bh3+ {[%emt 0:01:17]} 20. Kg1 {[%emt 0:00:20]} Bxf1 {[%emt 0:00:43]} 21. Kxf1 {[%emt 0:00:19]} Rxd5 {[%emt 0:01:02]} 22. Qxd5 {[%emt 0:00:48]} Qxb1+ {[%emt 0:00:08]} 23. Kg2 {[%emt 0:00:09]} Bd6 {[%emt 0:00:38] normal} 24. Qb5 {[%emt 0:00:54] normal} 0-1